bitfinex-derivatives/quotes_BTCF0:USTF0_20250130
["timestamp","ask_amount","ask_price","bid_price","bid_amount"]
[1738229326462,0.37644809,105360.0,105350.0,0.65287856]
[1738229326758,0.34623044,105360.0,105350.0,0.65287856]
[1738229326952,0.35123044,105360.0,105350.0,0.65287856]
[1738229327646,0.35119044,105360.0,105350.0,0.65287856]
[1738229327851,0.03874409,105360.0,105350.0,0.65287856]
[1738229331152,0.03874409,105360.0,105350.0,0.72110512]
[1738229331456,0.03374409,105360.0,105350.0,0.72110512]
[1738229331659,0.02974409,105360.0,105350.0,0.72010512]
[1738229331861,0.03274409,105360.0,105350.0,0.72110512]
[1738229332253,0.02974409,105360.0,105350.0,0.72010512]
[1738229332456,0.03274409,105360.0,105350.0,0.72010512]
[1738229333059,0.02974409,105360.0,105350.0,0.72010512]
[1738229333257,0.03074409,105360.0,105350.0,0.72010512]
[1738229333457,0.02932,105360.0,105350.0,0.72010512]
[1738229334663,0.02932,105360.0,105350.0,0.73183287]
[1738229340962,0.02932,105360.0,105350.0,0.66360631]
[1738229342064,0.02932,105360.0,105350.0,0.73183287]
[1738229342361,0.004,105360.0,105350.0,0.73183287]
[1738229342567,0.02928,105360.0,105350.0,0.73183287]
[1738229343069,0.02928,105360.0,105350.0,0.66360631]
[1738229344261,0.004,105360.0,105350.0,0.66360631]
[1738229345367,0.004,105360.0,105350.0,0.73183287]
[1738229347267,0.02928,105360.0,105350.0,0.73183287]
[1738229349367,0.004,105360.0,105350.0,0.73183287]
[1738229352572,0.004,105360.0,105350.0,0.76333287]
[1738229356976,0.004,105360.0,105350.0,0.69510631]
[1738229357283,0.004,105360.0,105350.0,0.76333287]
[1738229359770,0.004,105360.0,105350.0,0.69510631]
[1738229363270,0.004,105360.0,105350.0,0.76333287]
[1738229364075,0.004,105360.0,105350.0,0.69510631]
[1738229365271,0.004,105360.0,105350.0,0.76333287]
[1738229367974,0.003,105360.0,105350.0,0.76333287]
[1738229369080,0.37328714,105370.0,105360.0,0.189834]
[1738229369383,0.37328714,105370.0,105360.0,0.68708712]
[1738229370175,0.37628714,105370.0,105360.0,0.68708712]
[1738229371391,0.37728714,105370.0,105360.0,0.68708712]
[1738229371980,0.37724714,105370.0,105360.0,0.68708712]
[1738229382501,0.37716714,105370.0,105360.0,0.68708712]
[1738229383504,0.35212714,105370.0,105360.0,0.68708712]
[1738229383707,0.28882714,105370.0,105360.0,0.75531368]
[1738229383907,0.31244635,105390.0,105380.0,0.189798]
[1738229384210,0.31244635,105390.0,105380.0,0.25802456]
[1738229384400,0.74147291,105390.0,105380.0,0.189798]
[1738229384596,0.67324635,105390.0,105380.0,0.25802456]
[1738229384904,0.69844635,105390.0,105380.0,0.25802456]
[1738229385811,0.70144635,105390.0,105380.0,0.25902456]
[1738229386701,0.70444635,105390.0,105380.0,0.25902456]
[1738229387608,0.73584635,105390.0,105380.0,0.25902456]
[1738229387808,0.4234,105390.0,105380.0,0.25902456]
[1738229388001,0.4224,105390.0,105380.0,0.25889037]
[1738229388201,0.4224,105390.0,105380.0,0.27013619]
[1738229389512,0.4194,105390.0,105380.0,0.26913619]
[1738229390112,0.0586,105390.0,105380.0,0.26913619]
[1738229390615,0.0586,105390.0,105380.0,0.20090963]
[1738229390913,0.0586,105390.0,105380.0,0.26913619]
[1738229391115,0.4194,105390.0,105380.0,0.26913619]
[1738229391616,0.3942,105390.0,105380.0,0.26913619]
[1738229391816,0.05852,105390.0,105380.0,0.26913619]
[1738229392912,0.02712,105390.0,105380.0,0.26913619]
[1738229395411,0.38792,105390.0,105380.0,0.26913619]
[1738229397621,0.02712,105390.0,105380.0,0.26913619]
[1738229397819,0.38792,105390.0,105380.0,0.26913619]
[1738229400223,0.38792,105390.0,105380.0,0.20090963]
[1738229400523,0.64592656,105390.0,105380.0,0.20090963]
[1738229400822,0.5777,105390.0,105380.0,0.20090963]
[1738229401521,0.5777,105390.0,105380.0,0.26913619]
[1738229401720,0.5777,105390.0,105380.0,0.20090963]
[1738229404225,0.55258,105390.0,105380.0,0.26913619]
[1738229404430,0.57782,105390.0,105380.0,0.26913619]
[1738229405622,0.7673348,105390.0,105380.0,0.26913619]
[1738229407025,0.7673748,105390.0,105380.0,0.26913619]
[1738229407423,0.1915148,105390.0,105380.0,0.69816275]
[1738229407629,0.1915148,105390.0,105380.0,0.62993619]
[1738229407824,0.1915148,105390.0,105380.0,0.69816275]
[1738229408028,0.002,105390.0,105380.0,0.66283619]
[1738229408226,0.002,105390.0,105380.0,0.73106275]
[1738229416326,0.002,105390.0,105380.0,0.66283619]
[1738229416639,0.55258,105390.0,105380.0,0.26913619]
[1738229416827,0.62080656,105390.0,105380.0,0.26913619]
[1738229417023,1.64080656,105390.0,105380.0,0.20090963]
[1738229417332,0.62080656,105390.0,105380.0,0.20090963]
[1738229417727,1.59786,105390.0,105380.0,0.26913619]
[1738229417931,1.66608656,105390.0,105380.0,0.26913619]
[1738229418333,0.64608656,105390.0,105380.0,0.20090963]
[1738229419537,0.67768656,105390.0,105380.0,0.20090963]
[1738229422336,0.8672003,105390.0,105380.0,0.20090963]
[1738229423040,0.8672003,105390.0,105380.0,0.18966381]
[1738229424637,0.189798,105380.0,105370.0,0.1899436]
[1738229424844,0.68352456,105380.0,105370.0,0.1899436]
[1738229426136,0.32272456,105380.0,105370.0,0.25817016]
[1738229426330,0.550585,105390.0,105380.0,0.189798]
[1738229426533,0.575865,105390.0,105380.0,0.28912456]
[1738229427042,0.64409156,105390.0,105380.0,0.28912456]
[1738229427434,0.64609156,105390.0,105380.0,0.220898]
[1738229431545,0.62081156,105390.0,105380.0,0.220898]
[1738229431843,0.64605156,105390.0,105380.0,0.220898]
[1738229432744,0.64605156,105390.0,105380.0,0.189798]
[1738229432947,0.67615156,105390.0,105380.0,0.189798]
[1738229440040,0.65091156,105390.0,105380.0,0.189798]
[1738229440343,0.67615156,105390.0,105380.0,0.189798]
[1738229442155,1.04808033,105390.0,105380.0,0.189798]
[1738229447355,1.02284033,105390.0,105380.0,0.189798]
[1738229447659,1.04800033,105390.0,105380.0,0.189798]
[1738229448051,1.01790033,105390.0,105380.0,0.189798]
[1738229449947,2.03790033,105390.0,105380.0,0.189798]
[1738229451656,1.95050208,105390.0,105380.0,0.189798]
[1738229456856,1.96086738,105390.0,105380.0,0.189798]
[1738229457557,2.09469175,105390.0,105380.0,0.189798]
[1738229457853,1.07469175,105390.0,105380.0,0.189798]
[1738229458453,1.06432645,105390.0,105380.0,0.189798]
[1738229459858,1.06432645,105390.0,105380.0,0.10075211]
[1738229460762,0.96220208,105390.0,105380.0,0.10075211]
[1738229461555,0.96220208,105390.0,105370.0,0.20044889]
[1738229461556,0.189798,105380.0,105370.0,0.20044889]
[1738229461754,0.550598,105380.0,105370.0,0.20044889]
[1738229461945,0.550598,105380.0,105370.0,0.26867545]
[1738229462756,0.551598,105380.0,105370.0,0.26867545]
[1738229463356,0.190798,105380.0,105370.0,0.26867545]
[1738229463555,0.551598,105380.0,105370.0,0.26867545]
[1738229464058,0.190798,105380.0,105370.0,0.26867545]
[1738229464866,0.551598,105380.0,105370.0,0.26867545]
[1738229465256,0.190798,105380.0,105370.0,0.26867545]
[1738229465456,0.551598,105380.0,105370.0,0.26867545]
[1738229467661,0.190798,105380.0,105370.0,0.62947545]
[1738229467862,0.001,105380.0,105370.0,0.69770201]
[1738229468257,0.28453052,105390.0,105380.0,0.189798]
[1738229468461,0.28453052,105390.0,105380.0,0.78295112]
[1738229469565,0.28653052,105390.0,105380.0,0.78295112]
[1738229470164,0.25818382,105390.0,105380.0,0.78295112]
[1738229471467,0.28358382,105390.0,105380.0,0.78295112]
[1738229472666,0.28358382,105390.0,105380.0,0.71472456]
[1738229474654,0.28358382,105390.0,105380.0,0.78295112]
[1738229475758,0.25818382,105390.0,105380.0,0.78295112]
[1738229478567,0.002,105390.0,105380.0,0.78295112]
[1738229490781,0.002,105390.0,105380.0,0.42215112]
[1738229490972,0.002,105390.0,105380.0,0.78295112]
[1738229497583,0.36562452,105400.0,105380.0,1.02217968]
[1738229497776,0.07601868,105410.0,105390.0,0.56547968]
[1738229497979,0.07601868,105410.0,105400.0,0.48734168]
[1738229498184,0.07601868,105410.0,105400.0,0.41911512]
[1738229499591,0.575809,105420.0,105410.0,0.189744]
[1738229499884,0.575809,105420.0,105410.0,0.25797056]
[1738229500685,0.575809,105420.0,105410.0,0.29349001]
[1738229502095,0.3658,105420.0,105410.0,0.39723602]
[1738229502390,0.005,105420.0,105410.0,0.75803602]
[1738229502585,0.3608,105460.0,105430.0,0.047426]
[1738229502780,0.3608,105460.0,105450.0,0.29341801]
[1738229503379,0.67960001,105460.0,105450.0,0.189672]
[1738229504192,0.18968,105450.0,105440.0,0.189687]
[1738229504391,0.56124601,105450.0,105430.0,0.0001426]
[1738229504590,0.55049,105440.0,105430.0,0.1898406]
[1738229504888,0.57593,105440.0,105430.0,0.1898406]
[1738229505987,0.57593,105440.0,105430.0,0.1908406]
[1738229506591,0.67967601,105440.0,105430.0,0.1908406]
[1738229507494,1.69967601,105440.0,105430.0,0.1908406]
[1738229508297,1.69967601,105440.0,105430.0,0.0011426]
[1738229509593,1.69967601,105440.0,105430.0,0.1908506]
[1738229510683,0.67967601,105440.0,105430.0,0.1908506]
[1738229511083,1.69967601,105440.0,105430.0,0.1908506]
[1738229513795,1.57049,105440.0,105430.0,0.1908506]
[1738229513996,1.59597,105440.0,105430.0,0.1908506]
[1738229514795,0.38624,105440.0,105430.0,0.1908506]
[1738229514997,0.38624,105440.0,105430.0,0.2236506]
[1738229515198,0.02544,105440.0,105430.0,0.2236506]
[1738229515407,0.3608,105440.0,105430.0,0.32739661]
[1738229515700,0.38624,105440.0,105430.0,0.32739661]
[1738229516200,0.38624,105440.0,105430.0,0.2236506]
[1738229516703,0.67967601,105440.0,105430.0,0.1908506]
[1738229517091,0.67967601,105440.0,105430.0,0.1898506]
[1738229517293,1.69967601,105440.0,105430.0,0.1898506]
[1738229517692,0.67967601,105440.0,105430.0,0.1898506]
[1738229518203,1.70063601,105440.0,105430.0,0.1898506]
[1738229518801,0.68063601,105440.0,105430.0,0.1898506]
[1738229519701,0.65523601,105440.0,105430.0,0.1898506]
[1738229519903,0.68063601,105440.0,105430.0,0.1898506]
[1738229520720,0.65523601,105440.0,105430.0,0.1898506]
[1738229521020,0.68063601,105440.0,105430.0,0.1898506]
[1738229522511,0.68067601,105440.0,105430.0,0.1898506]
[1738229522815,0.71097601,105440.0,105430.0,0.1898506]
[1738229524506,0.71097601,105440.0,105430.0,0.0001426]
[1738229524911,0.68553601,105440.0,105430.0,0.1898506]
[1738229525212,0.71097601,105440.0,105430.0,0.1898506]
[1738229526621,0.74339346,105440.0,105430.0,0.0001426]
[1738229527122,0.189726,105420.0,105410.0,0.252837]
[1738229527321,0.64404773,105420.0,105410.0,0.252837]
[1738229527621,0.38624,105420.0,105410.0,0.32091873]
[1738229528209,0.38624,105420.0,105410.0,0.33078816]
[1738229528410,0.38624,105420.0,105410.0,0.33178816]
[1738229529015,0.3608,105420.0,105410.0,0.33178816]
[1738229529216,0.38624,105420.0,105410.0,0.33178816]
[1738229529623,0.64404773,105420.0,105410.0,0.20060643]
[1738229529924,0.64404773,105420.0,105410.0,0.19960643]
[1738229530124,1.66404773,105420.0,105410.0,0.19960643]
[1738229530715,1.66404773,105420.0,105410.0,0.20060643]
[1738229531919,0.64404773,105420.0,105410.0,0.20060643]
[1738229532621,0.02544,105420.0,105410.0,0.26868816]
[1738229532819,0.02544,105420.0,105410.0,0.33138816]
[1738229533020,1.70293933,105430.0,105420.0,0.189726]
[1738229533415,1.72845933,105430.0,105420.0,0.189726]
[1738229537622,0.6148576,105430.0,105420.0,0.25780773]
[1738229537823,0.0898626,105430.0,105420.0,0.25780773]
[1738229538034,0.0001426,105430.0,105420.0,0.35888946]
[1738229538734,0.0001426,105430.0,105420.0,0.71968946]
[1738229540637,0.0001426,105430.0,105420.0,0.6872332]
[1738229542437,0.0001426,105430.0,105420.0,0.222726]
[1738229542635,0.1898506,105430.0,105420.0,0.222726]
[1738229543628,0.0001426,105430.0,105420.0,0.222726]
[1738229543827,0.0001426,105430.0,105420.0,0.3264332]
[1738229544138,0.0001426,105430.0,105420.0,0.222726]
[1738229548732,0.0001426,105430.0,105420.0,0.3264332]
[1738229549139,0.0001426,105430.0,105420.0,0.6872332]
[1738229550442,0.0001426,105430.0,105420.0,0.583526]
[1738229550632,0.0001426,105430.0,105420.0,0.6872332]
[1738229552533,0.0001426,105430.0,105420.0,0.7909404]
[1738229560039,0.0001426,105430.0,105420.0,0.6872332]
[1738229568439,0.0001426,105430.0,105420.0,0.7909404]
[1738229574152,0.92481152,105460.0,105420.0,0.6012144]
[1738229574351,0.76704652,105460.0,105450.0,0.2933792]
[1738229574548,0.79240652,105460.0,105450.0,0.2933792]
[1738229575847,0.79240652,105460.0,105450.0,0.2943792]
[1738229576251,0.79636652,105460.0,105450.0,0.2943792]
[1738229576446,1.45556652,105460.0,105450.0,0.2943792]
[1738229576851,1.45156652,105460.0,105450.0,0.2943792]
[1738229577051,1.45556652,105460.0,105450.0,0.2943792]
[1738229577560,1.14332,105460.0,105450.0,0.2943792]
[1738229578254,1.14332,105460.0,105450.0,0.6551792]
[1738229578650,1.11182,105460.0,105450.0,0.6551792]
[1738229579851,1.11182,105460.0,105450.0,0.66511891]
[1738229580453,1.0865,105460.0,105450.0,0.66511891]
[1738229581252,0.0665,105460.0,105450.0,0.66511891]
[1738229581451,0.0665,105460.0,105450.0,0.76882611]
[1738229581761,0.0038574,105460.0,105450.0,0.76882611]
[1738229581955,0.0038574,105460.0,105450.0,0.83462611]
[1738229585148,0.1,105480.0,105470.0,0.189636]
[1738229585452,0.00080337,105480.0,105470.0,1.1186504]
[1738229585650,0.00080337,105480.0,105470.0,1.0793432]
[1738229588062,0.00080337,105480.0,105470.0,1.0473432]
[1738229588361,0.00080337,105480.0,105470.0,0.189636]
[1738229588955,0.36160337,105480.0,105470.0,0.189636]
[1738229589156,1.02080337,105480.0,105470.0,0.2933432]
[1738229589361,1.38160337,105480.0,105470.0,0.30357693]
[1738229590149,1.02080337,105480.0,105470.0,0.19986973]
[1738229590356,1.04632337,105480.0,105470.0,0.19986973]
[1738229590557,1.04632337,105480.0,105470.0,0.30357693]
[1738229590754,0.02632337,105480.0,105470.0,0.19986973]
[1738229590955,0.36160337,105480.0,105470.0,0.19986973]
[1738229591151,0.36160337,105480.0,105470.0,0.30357693]
[1738229591372,0.00080337,105480.0,105470.0,0.30357693]
[1738229591870,0.00080337,105480.0,105470.0,0.66437693]
[1738229601175,0.00080337,105480.0,105470.0,0.30357693]
[1738229616688,0.36160337,105480.0,105470.0,0.30357693]
[1738229616878,0.55122137,105480.0,105470.0,0.01023373]
[1738229617085,0.189636,105470.0,105460.0,0.1897926]
[1738229617287,0.644636,105470.0,105460.0,0.1897926]
[1738229617486,0.5587072,105470.0,105440.0,0.10512918]
[1738229617789,0.550472,105450.0,105440.0,0.29481918]
[1738229618084,0.550472,105450.0,105440.0,0.19111198]
[1738229618294,0.583572,105450.0,105440.0,0.29481918]
[1738229619083,0.583572,105450.0,105440.0,0.30081918]
[1738229619283,0.583572,105450.0,105440.0,0.31073444]
[1738229619492,0.4197,105450.0,105440.0,0.31073444]
[1738229620191,0.609372,105450.0,105440.0,0.31073444]
[1738229620589,0.609372,105450.0,105440.0,0.31373444]
[1738229623391,0.609372,105450.0,105440.0,0.21002724]
[1738229624398,0.639572,105450.0,105440.0,0.21002724]
[1738229625192,0.639612,105450.0,105440.0,0.21002724]
[1738229625697,0.671812,105450.0,105440.0,0.21002724]
[1738229625897,1.691812,105450.0,105440.0,0.21002724]
[1738229626694,0.671772,105450.0,105440.0,0.31373444]
[1738229627086,0.671772,105450.0,105440.0,0.21002724]
[1738229627892,0.671732,105450.0,105440.0,0.21002724]
[1738229629500,0.645972,105450.0,105440.0,0.21002724]
[1738229629691,0.671732,105450.0,105440.0,0.21002724]
[1738229630401,0.645972,105450.0,105440.0,0.21002724]
[1738229630591,0.671692,105450.0,105440.0,0.21002724]
[1738229630791,0.641492,105450.0,105440.0,0.21002724]
[1738229630993,0.641492,105450.0,105440.0,0.31373444]
[1738229631487,0.615772,105450.0,105440.0,0.31373444]
[1738229631693,0.641492,105450.0,105440.0,0.31373444]
[1738229632703,0.641492,105450.0,105440.0,0.21002724]
[1738229636398,0.641412,105450.0,105440.0,0.21002724]
[1738229637401,0.641372,105450.0,105440.0,0.21002724]
[1738229639397,1.661372,105450.0,105440.0,0.21002724]
[1738229639602,0.641372,105450.0,105440.0,0.31373444]
[1738229640706,0.641372,105450.0,105440.0,0.27807092]
[1738229641295,0.4517,105450.0,105440.0,0.27807092]
[1738229641501,1.65870754,105460.0,105450.0,0.189672]
[1738229641702,1.68350754,105460.0,105450.0,0.25771568]
[1738229642309,1.32274754,105460.0,105450.0,0.189672]
[1738229642807,1.32274754,105460.0,105450.0,0.192672]
[1738229643007,1.13308354,105460.0,105450.0,0.192672]
[1738229643208,1.0457426,105460.0,105450.0,0.192672]
[1738229643411,1.0457426,105460.0,105450.0,0.29835605]
[1738229643810,1.0457426,105460.0,105450.0,0.32845605]
[1738229648107,1.0201426,105460.0,105450.0,0.32845605]
[1738229648411,1.0456626,105460.0,105450.0,0.32845605]
[1738229650012,0.0001426,105460.0,105450.0,0.32845605]
[1738229650212,0.0256626,105460.0,105450.0,0.7929401]
[1738229650608,0.0001426,105460.0,105450.0,0.7929401]
[1738229652414,0.02556,105470.0,105450.0,0.6032681]
[1738229652618,0.70911355,105480.0,105470.0,0.189636]
[1738229652912,0.70911355,105480.0,105470.0,0.29332005]
[1738229653112,0.70911355,105480.0,105470.0,0.32432005]
[1738229653915,0.68355355,105480.0,105470.0,0.32432005]
[1738229654610,0.68355355,105480.0,105470.0,0.68512005]
[1738229655107,0.00080337,105480.0,105470.0,0.68512005]
[1738229657614,0.00080337,105480.0,105470.0,0.68612005]
[1738229659820,0.59684875,105490.0,105480.0,0.189618]
[1738229660025,0.62240875,105490.0,105480.0,0.7577861]
[1738229660326,0.59684875,105490.0,105480.0,0.7889861]
[1738229660620,0.59684875,105490.0,105480.0,0.68530205]
[1738229661122,0.59684875,105490.0,105480.0,0.7889861]
[1738229661325,0.59684875,105490.0,105480.0,0.8221861]
[1738229663032,0.59684875,105490.0,105480.0,0.71850205]
[1738229663323,0.59684875,105490.0,105480.0,0.8221861]
[1738229664624,0.00142217,105490.0,105480.0,0.7507716]
[1738229666630,0.1,105500.0,105490.0,0.1896]
[1738229666821,0.1,105500.0,105490.0,0.6183768]
[1738229667717,0.1,105500.0,105490.0,0.6493768]
[1738229670629,0.1,105500.0,105490.0,0.66144461]
[1738229685940,0.1,105500.0,105490.0,0.72942141]
[1738229686242,0.07788264,105500.0,105490.0,0.72942141]
[1738229687846,0.07788264,105500.0,105490.0,0.73042141]
[1738229688343,0.07788264,105500.0,105490.0,0.75618141]
[1738229688732,0.33349624,105500.0,105490.0,0.75618141]
[1738229691245,0.33349624,105500.0,105490.0,0.73042141]
[1738229694346,0.33349624,105500.0,105490.0,0.73028751]
[1738229695549,0.07788264,105500.0,105490.0,0.73028751]
[1738229700936,0.07788264,105500.0,105490.0,0.75592751]
[1738229702739,0.07788264,105500.0,105490.0,0.73028751]
[1738229705841,0.07788264,105500.0,105490.0,0.66231071]
[1738229706045,0.07788264,105500.0,105490.0,0.73028751]
[1738229734460,0.07788264,105500.0,105490.0,0.73128751]
[1738229735570,0.07788264,105500.0,105490.0,0.73728751]
[1738229740762,0.07788264,105500.0,105490.0,0.73528751]
[1738229740961,0.07788264,105500.0,105490.0,0.73728751]
[1738229741563,0.07788264,105500.0,105490.0,0.73828751]
[1738229741763,0.07788264,105500.0,105490.0,0.73228751]
[1738229741966,0.07788264,105500.0,105490.0,0.73828751]
[1738229742364,0.07788264,105500.0,105490.0,0.73228751]
[1738229742672,0.07496166,105500.0,105490.0,0.74128751]
[1738229743957,0.07496166,105500.0,105490.0,0.74028751]
[1738229744665,0.07496166,105500.0,105490.0,0.73828751]
[1738229744868,0.07496166,105500.0,105490.0,0.74128751]
[1738229745376,0.07496166,105500.0,105490.0,0.76696751]
[1738229751373,0.07496166,105500.0,105490.0,0.74128751]
[1738229759983,0.50373846,105500.0,105490.0,0.21353391]
[1738229760281,0.82539726,105500.0,105490.0,0.02406781]
[1738229760485,1.2096,105490.0,105480.0,0.0001426]
[1738229760689,1.40656,105490.0,105480.0,0.2575948]
[1738229760983,1.411,105490.0,105480.0,0.3255716]
[1738229761181,0.0302,105490.0,105480.0,0.6863716]
[1738229761377,0.0302,105490.0,105480.0,0.66539363]
[1738229761879,0.0302,105490.0,105480.0,0.67439363]
[1738229762978,0.0302,105490.0,105480.0,0.67839363]
[1738229763686,0.0302,105490.0,105480.0,0.68886873]
[1738229764980,0.18711096,105490.0,105480.0,0.68886873]
[1738229767686,0.0302,105490.0,105480.0,0.68886873]
[1738229768787,0.32199522,105500.0,105490.0,0.1896]
[1738229769082,0.29611522,105500.0,105490.0,0.3255536]
[1738229769282,0.26501522,105500.0,105490.0,0.6863536]
[1738229769587,0.26501522,105500.0,105490.0,0.6495768]
[1738229769987,0.26501522,105500.0,105490.0,0.7175536]
[1738229770286,0.23201522,105500.0,105490.0,0.7245536]
[1738229770488,0.23201522,105500.0,105490.0,0.7569536]
[1738229770684,0.07510426,105500.0,105490.0,0.7569536]
[1738229772889,0.07510426,105500.0,105490.0,0.7827936]
[1738229776093,0.07510426,105500.0,105490.0,0.8153936]
[1738229778789,0.07510426,105500.0,105490.0,0.6891768]
[1738229779178,0.07510426,105500.0,105490.0,0.7571536]
[1738229781397,0.07510426,105500.0,105490.0,0.6891768]
[1738229782896,0.07510426,105500.0,105490.0,0.7571536]
[1738229783393,0.07510426,105500.0,105490.0,0.7871536]
[1738229783594,0.07510426,105500.0,105490.0,0.8128736]
[1738229787394,0.28972498,105520.0,105510.0,0.189564]
[1738229787582,0.23365667,105520.0,105510.0,1.0471176]
[1738229787784,0.23365667,105520.0,105510.0,1.1691376]
[1738229788399,0.19906994,105520.0,105510.0,1.1434176]
[1738229788697,0.19906994,105520.0,105510.0,1.1691376]
[1738229790392,0.20006994,105520.0,105510.0,1.1691376]
[1738229790615,0.001,105520.0,105510.0,1.1691376]
[1738229790899,0.313,105530.0,105520.0,0.189546]
[1738229791089,0.313,105530.0,105520.0,0.6862996]
[1738229791289,0.3461,105530.0,105520.0,0.6862996]
[1738229792092,0.3471,105530.0,105520.0,0.6862996]
[1738229792489,0.3471,105530.0,105520.0,0.65385844]
[1738229794901,0.314,105530.0,105520.0,0.65385844]
[1738229800608,0.29051474,105530.0,105520.0,0.65385844]
[1738229802207,0.27146374,105530.0,105520.0,0.65385844]
[1738229805509,0.27146374,105530.0,105520.0,0.67965844]
[1738229808111,0.04995711,105530.0,105520.0,0.78317088]
[1738229808314,0.28343051,105560.0,105550.0,0.189492]
[1738229808517,0.28343051,105560.0,105550.0,0.65380444]
[1738229810716,0.28743051,105560.0,105550.0,0.65480444]
[1738229811014,0.47790451,105560.0,105550.0,0.189492]
[1738229812907,0.194474,105560.0,105550.0,0.189492]
[1738229813715,0.194474,105560.0,105550.0,0.20012587]
[1738229815715,0.194474,105560.0,105550.0,0.30363831]
[1738229817217,0.005,105560.0,105550.0,0.30363831]
[1738229818815,0.194474,105560.0,105550.0,0.30363831]
[1738229819319,0.220474,105560.0,105550.0,0.30363831]
[1738229819516,0.194474,105560.0,105550.0,0.30363831]
[1738229819718,0.220474,105560.0,105550.0,0.30363831]
[1738229820421,0.220474,105560.0,105550.0,0.20012587]
[1738229820632,0.68478644,105560.0,105550.0,0.01063387]
[1738229820830,0.189492,105550.0,105540.0,0.1896526]
[1738229821036,0.18952,105540.0,105520.0,0.15231751]
[1738229821337,0.0638,105530.0,105520.0,0.34186351]
[1738229821529,0.55032,105540.0,105530.0,0.189528]
[1738229821530,0.02612,105540.0,105530.0,0.189528]
[1738229821729,0.222298,105550.0,105540.0,0.18951]
[1738229821730,0.12272,105550.0,105540.0,0.18951]
[1738229821935,1.14272,105550.0,105540.0,0.29302244]
[1738229822944,1.21232868,105550.0,105540.0,0.29302244]
[1738229823845,1.21332868,105550.0,105540.0,0.29302244]
[1738229824341,1.21332868,105550.0,105540.0,0.65382244]
[1738229825038,1.14372,105550.0,105540.0,0.65382244]
[1738229826344,1.14372,105550.0,105540.0,0.66458358]
[1738229828641,1.14372,105550.0,105540.0,0.6968953]
[1738229829046,1.1176,105550.0,105540.0,0.6968953]
[1738229829244,0.001,105550.0,105540.0,0.6968953]
[1738229829647,0.001,105550.0,105540.0,0.7277953]
[1738229829847,0.0001426,105560.0,105550.0,0.189492]
[1738229830045,0.0001426,105560.0,105550.0,0.61820408]
[1738229830548,0.0001426,105560.0,105550.0,0.65375027]
[1738229831346,0.0041426,105560.0,105550.0,0.65375027]
[1738229832538,0.0051426,105560.0,105550.0,0.65375027]
[1738229836555,0.0051426,105560.0,105550.0,0.68525027]
[1738229840555,0.07474501,105560.0,105550.0,0.68525027]
[1738229843761,0.54418671,105560.0,105550.0,0.68525027]
[1738229847667,0.28857311,105560.0,105550.0,0.68525027]
[1738229852163,0.28757311,105560.0,105550.0,0.68525027]
[1738229852666,0.28457311,105560.0,105550.0,0.71756862]
[1738229853063,0.28457311,105560.0,105550.0,0.64968031]
[1738229853454,0.28457311,105560.0,105550.0,0.71756862]
[1738229853662,0.28457311,105560.0,105550.0,0.64968031]
[1738229854062,0.28457311,105560.0,105550.0,0.61818031]
[1738229854967,0.28457311,105560.0,105550.0,0.68606862]
[1738229855166,0.28457311,105560.0,105550.0,0.61818031]
[1738229856171,0.28457311,105560.0,105550.0,0.68388031]
[1738229858263,0.28457311,105560.0,105550.0,0.75176862]
[1738229867676,0.28457311,105560.0,105550.0,0.65138031]
[1738229867870,0.28457311,105560.0,105550.0,0.61818031]
[1738229872092,0.28457311,105560.0,105550.0,0.68606862]
[1738229872890,0.28457311,105560.0,105550.0,0.61818031]
[1738229873582,0.28457311,105560.0,105550.0,0.68606862]
[1738229876096,0.28457311,105560.0,105550.0,0.61818031]
[1738229876995,0.0011426,105560.0,105550.0,0.61818031]
[1738229888913,0.2286225,105560.0,105550.0,0.61818031]
[1738229890615,0.2286225,105560.0,105550.0,0.68606862]
[1738229890807,0.2286225,105560.0,105550.0,0.71886862]
[1738229891317,0.2286225,105560.0,105550.0,0.75036862]
[1738229892117,0.0011426,105560.0,105550.0,0.75036862]
[1738229903019,0.0011426,105560.0,105550.0,0.77576862]
[1738229908118,0.0011426,105560.0,105550.0,0.71146862]
[1738229908718,0.0011426,105560.0,105550.0,0.68606862]
[1738229914527,1e-08,105560.0,105550.0,0.68606862]
[1738229914728,1e-08,105560.0,105550.0,0.74886862]
[1738229915127,0.0939,105570.0,105560.0,0.39313893]
[1738229915318,0.2274799,105580.0,105570.0,0.189456]
[1738229915623,0.2274799,105580.0,105570.0,0.68603262]
[1738229916121,0.2274799,105580.0,105570.0,0.61814431]
[1738229916321,0.84560721,105580.0,105570.0,0.06788831]
[1738229916522,0.87304721,105580.0,105560.0,0.49017821]
[1738229916722,0.87304721,105580.0,105570.0,0.06788831]
[1738229916928,0.8051589,105580.0,105570.0,0.06788831]
[1738229917118,0.8051589,105580.0,105570.0,0.25734431]
[1738229917731,0.8061589,105580.0,105570.0,0.25734431]
[1738229918120,0.8051589,105580.0,105570.0,0.25734431]
[1738229918322,0.2563199,105580.0,105570.0,0.25734431]
[1738229918823,0.32591122,105580.0,105570.0,0.25734431]
[1738229919020,0.32691122,105580.0,105570.0,0.25734431]
[1738229919421,0.32691122,105580.0,105570.0,0.61814431]
[1738229920724,0.32715122,105580.0,105570.0,0.61814431]
[1738229920927,0.32615122,105580.0,105570.0,0.61814431]
[1738229922622,0.02908,105580.0,105570.0,0.61814431]
[1738229923432,0.001,105580.0,105570.0,0.61814431]
[1738229923733,0.02908,105580.0,105570.0,0.61814431]
[1738229926531,0.001,105580.0,105570.0,0.61814431]
[1738229926841,0.001,105580.0,105570.0,0.68603262]
[1738229927035,0.001,105580.0,105570.0,0.61814431]
[1738229929136,0.001,105580.0,105570.0,0.68603262]
[1738229929335,0.001,105580.0,105570.0,0.71893262]
[1738229929635,0.001,105580.0,105570.0,0.65104431]
[1738229931234,0.001,105580.0,105570.0,0.75053262]
[1738229931433,0.001,105580.0,105570.0,0.68264431]
[1738229931937,0.001,105580.0,105570.0,0.75053262]
[1738229932139,0.28443051,105580.0,105570.0,0.75053262]
[1738229932439,0.28443051,105580.0,105570.0,0.68264431]
[1738229932938,0.28443051,105580.0,105570.0,0.75053262]
[1738229933148,0.28443051,105580.0,105570.0,0.68264431]
[1738229933838,0.28443051,105580.0,105570.0,0.75053262]
[1738229934038,0.28443051,105580.0,105570.0,0.68264431]
[1738229934338,0.28443051,105580.0,105570.0,0.75053262]
[1738229934740,0.28443051,105580.0,105570.0,0.68264431]
[1738229935036,0.28443051,105580.0,105570.0,0.75053262]
[1738229935239,0.28443051,105580.0,105570.0,0.68264431]
[1738229936141,0.28443051,105580.0,105570.0,0.75053262]
[1738229937136,0.28443051,105580.0,105570.0,0.68264431]
[1738229939236,0.24317786,105580.0,105570.0,0.75053262]